[Event "*** Titled Tuesday 3|2 Blitz"]
[Site "Chess.com"]
[Date "2015.12.01"]
[Round "2"]
[White "ilmago"]
[Black "DaPazz"]
[Result "1-0"]
[WhiteElo "1906"]
[BlackElo "1810"]
[TimeControl "180+2"]
[EndTime "11:17:34 PST"]
[Termination "ilmago won by resignation"]

1. e4 {[%clk 0:03:01.9]} 1... e5 {[%clk 0:02:51.9]} 2. Nf3 {[%clk 0:03:02.3]}
2... Nf6 {[%clk 0:02:51.7]} 3. Nxe5 {[%clk 0:02:59.4]} 3... d6 {[%clk
0:02:51.1]} 4. Nc4 {[%clk 0:03:00.3]} 4... Nxe4 {[%clk 0:02:41.9]} 5. d4 {[%clk
0:03:00.9]} 5... d5 {[%clk 0:02:39.2]} 6. Ne3 {[%clk 0:03:01.5]} 6... Be7 {[%clk
0:02:36.2]} 7. Bd3 {[%clk 0:02:59.8]} 7... O-O {[%clk 0:02:35.2]} 8. O-O {[%clk
0:03:00.1]} 8... Nc6 {[%clk 0:02:34.3]} 9. c3 {[%clk 0:02:52.9]} 9... Bg5 {[%clk
0:02:26.5]} 10. f3 {[%clk 0:02:42.9]} 10... Bxe3+ {[%clk 0:02:18.5]} 11. Bxe3
{[%clk 0:02:42.8]} 11... Nd6 {[%clk 0:02:17.9]} 12. Qc2 {[%clk 0:02:36.4]} 12...
g6 {[%clk 0:02:15.7]} 13. Nd2 {[%clk 0:02:36]} 13... Bf5 {[%clk 0:02:11.4]} 14.
Bh6 {[%clk 0:02:32.4]} 14... Bxd3 {[%clk 0:02:07.6]} 15. Qxd3 {[%clk 0:02:32.8]}
15... Re8 {[%clk 0:02:08.1]} 16. Rae1 {[%clk 0:02:30.8]} 16... Qf6 {[%clk
0:02:06.9]} 17. Be3 {[%clk 0:02:26.2]} 17... a6 {[%clk 0:02:03.8]} 18. Bf2
{[%clk 0:02:27]} 18... Na5 {[%clk 0:02:02]} 19. b3 {[%clk 0:02:25.3]} 19... b5
{[%clk 0:01:56.5]} 20. Bg3 {[%clk 0:02:23.2]} 20... Nab7 {[%clk 0:01:53.7]} 21.
Be5 {[%clk 0:02:23.4]} 21... Qf5 {[%clk 0:01:51.8]} 22. Qe3 {[%clk 0:02:19.1]}
22... f6 {[%clk 0:01:47.5]} 23. g4 {[%clk 0:02:19.4]} 23... Qc2 {[%clk
0:01:44.3]} 24. Qh6 {[%clk 0:02:11.3]} 24... fxe5 {[%clk 0:01:42.9]} 25. dxe5
{[%clk 0:02:12.2]} 25... Nf7 {[%clk 0:01:42.6]} 26. Qf4 {[%clk 0:02:12.5]} 26...
Nbd8 {[%clk 0:01:39]} 27. Rf2 {[%clk 0:02:08.5]} 27... Ne6 {[%clk 0:01:38.7]}
28. Qg3 {[%clk 0:02:01.6]} 28... Qxc3 {[%clk 0:01:38.1]} 29. f4 {[%clk
0:01:50.6]} 29... Nc5 {[%clk 0:01:32.5]} 30. Qxc3 {[%clk 0:01:49.9]} 1-0

[Event "*** Titled Tuesday 3|2 Blitz"]
[Site "Chess.com"]
[Date "2015.12.01"]
[Round "2"]
[White "spectralsoul"]
[Black "FrankieJay"]
[Result "1-0"]
[WhiteElo "2473"]
[BlackElo "2148"]
[TimeControl "180+2"]
[EndTime "11:17:59 PST"]
[Termination "spectralsoul won by resignation"]

1. Nf3 {[%clk 0:03:01.9]} 1... Nf6 {[%clk 0:03:00.2]} 2. c4 {[%clk 0:03:02.9]}
2... g6 {[%clk 0:03:01]} 3. Nc3 {[%clk 0:03:04.4]} 3... Bg7 {[%clk 0:03:02.5]}
4. d4 {[%clk 0:03:05.8]} 4... O-O {[%clk 0:03:03.5]} 5. g3 {[%clk 0:03:05.5]}
5... d6 {[%clk 0:03:04.7]} 6. Bg2 {[%clk 0:03:06.9]} 6... Nbd7 {[%clk
0:03:05.9]} 7. O-O {[%clk 0:03:08]} 7... e5 {[%clk 0:03:07.3]} 8. e4 {[%clk
0:03:09.5]} 8... c6 {[%clk 0:03:08.4]} 9. h3 {[%clk 0:03:09.2]} 9... Qb6 {[%clk
0:03:09.3]} 10. Re1 {[%clk 0:02:58.1]} 10... exd4 {[%clk 0:03:05.9]} 11. Nxd4
{[%clk 0:02:58.3]} 11... Ne8 {[%clk 0:03:06.9]} 12. Nc2 {[%clk 0:02:54.7]} 12...
a5 {[%clk 0:02:44.1]} 13. Na4 {[%clk 0:02:32.1]} 13... Qc7 {[%clk 0:02:33.5]}
14. Bf4 {[%clk 0:02:29.4]} 14... b5 {[%clk 0:02:12.8]} 15. cxb5 {[%clk
0:02:21.9]} 15... cxb5 {[%clk 0:02:14.7]} 16. Nc3 {[%clk 0:02:23.2]} 16... Rb8
{[%clk 0:01:52.8]} 17. Nd5 {[%clk 0:02:22.8]} 17... Qd8 {[%clk 0:01:54]} 18. Nd4
{[%clk 0:02:21.6]} 18... Bb7 {[%clk 0:01:44.6]} 19. Rc1 {[%clk 0:02:11.5]} 19...
Ne5 {[%clk 0:01:23.8]} 20. b3 {[%clk 0:01:47.3]} 20... b4 {[%clk 0:01:05.1]} 21.
Be3 {[%clk 0:01:40.1]} 21... Rc8 {[%clk 0:01:00.3]} 22. Rxc8 {[%clk 0:01:39.7]}
22... Bxc8 {[%clk 0:00:57.7]} 23. f4 {[%clk 0:01:40.9]} 23... f5 {[%clk
0:00:21.9]} 1-0

[Event "*** Titled Tuesday 3|2 Blitz"]
[Site "Chess.com"]
[Date "2015.12.01"]
[Round "2"]
[White "kikydu96"]
[Black "stepanosinovsky"]
[Result "1-0"]
[WhiteElo "2255"]
[BlackElo "2196"]
[TimeControl "180+2"]
[EndTime "11:19:11 PST"]
[Termination "kikydu96 won on time"]

1. e4 {[%clk 0:03:01.9]} 1... e5 {[%clk 0:02:54.4]} 2. Nf3 {[%clk 0:03:02.5]}
2... Nc6 {[%clk 0:02:56.3]} 3. d4 {[%clk 0:03:01.8]} 3... exd4 {[%clk
0:02:56.6]} 4. Nxd4 {[%clk 0:03:03]} 4... Bc5 {[%clk 0:02:55]} 5. Be3 {[%clk
0:03:03.3]} 5... Qf6 {[%clk 0:02:55.5]} 6. Nb5 {[%clk 0:03:04.3]} 6... Bxe3
{[%clk 0:02:45.3]} 7. fxe3 {[%clk 0:03:05.6]} 7... Qh4+ {[%clk 0:02:34.6]} 8. g3
{[%clk 0:03:06.9]} 8... Qxe4 {[%clk 0:02:33.1]} 9. Nxc7+ {[%clk 0:03:07.3]} 9...
Kd8 {[%clk 0:02:26.9]} 10. Nxa8 {[%clk 0:03:07.2]} 10... Qxh1 {[%clk 0:02:20]}
11. Qd6 {[%clk 0:03:08.7]} 11... Nge7 {[%clk 0:02:13.3]} 12. Nd2 {[%clk
0:03:08.5]} 12... Qxh2 {[%clk 0:01:36.4]} 13. O-O-O {[%clk 0:03:04.3]} 13... Qh6
{[%clk 0:00:51]} 14. Qc7+ {[%clk 0:02:56.8]} 14... Ke8 {[%clk 0:00:52]} 15. Nc4
{[%clk 0:02:56.5]} 15... Kf8 {[%clk 0:00:39.5]} 16. b4 {[%clk 0:02:42.2]} 16...
b5 {[%clk 0:00:32.3]} 17. Nd6 {[%clk 0:02:02.7]} 17... Qxe3+ {[%clk 0:00:30.6]}
18. Kb1 {[%clk 0:02:02.6]} 18... Qxg3 {[%clk 0:00:27.6]} 19. Bxb5 {[%clk
0:01:58.6]} 19... Qf4 {[%clk 0:00:09.7]} 20. a3 {[%clk 0:01:49.8]} 20... Qf3
{[%clk 0:00:04.9]} 21. Rf1 {[%clk 0:01:29.7]} 21... Qxa3 {[%clk 0:00:04.4]} 22.
Rxf7+ {[%clk 0:01:30.7]} 22... Kg8 {[%clk 0:00:05.4]} 23. Rxe7 {[%clk
0:01:31.9]} 23... Qxb4+ {[%clk 0:00:06.2]} 24. Kc1 {[%clk 0:01:33.2]} 24... Qa3+
{[%clk 0:00:05.2]} 25. Kd2 {[%clk 0:01:29.6]} 25... Qb4+ {[%clk 0:00:04.8]} 26.
Kd1 {[%clk 0:01:21]} 26... Qg4+ {[%clk 0:00:04.8]} 27. Re2 {[%clk 0:01:17.4]}
1-0

[Event "*** Titled Tuesday 3|2 Blitz"]
[Site "Chess.com"]
[Date "2015.12.01"]
[Round "2"]
[White "Herman-NY"]
[Black "dawnrule"]
[Result "0-1"]
[WhiteElo "2211"]
[BlackElo "2225"]
[TimeControl "180+2"]
[EndTime "11:19:19 PST"]
[Termination "dawnrule won by resignation"]

1. e4 {[%clk 0:03:01.9]} 1... c5 {[%clk 0:02:51.6]} 2. Nf3 {[%clk 0:03:02.8]}
2... d6 {[%clk 0:02:53.1]} 3. d4 {[%clk 0:03:03.7]} 3... cxd4 {[%clk 0:02:55]}
4. Nxd4 {[%clk 0:03:05.6]} 4... Nf6 {[%clk 0:02:56.7]} 5. Nc3 {[%clk 0:03:07.1]}
5... g6 {[%clk 0:02:58.1]} 6. Be3 {[%clk 0:03:07.1]} 6... Bg7 {[%clk 0:02:58.2]}
7. f3 {[%clk 0:03:08.7]} 7... O-O {[%clk 0:02:59.1]} 8. Qd2 {[%clk 0:03:10.3]}
8... Nc6 {[%clk 0:03:00.4]} 9. Bc4 {[%clk 0:03:09.2]} 9... Bd7 {[%clk
0:03:00.6]} 10. h4 {[%clk 0:03:10.4]} 10... Rc8 {[%clk 0:02:58.8]} 11. Bb3
{[%clk 0:03:10.9]} 11... h5 {[%clk 0:02:59.9]} 12. O-O-O {[%clk 0:03:10.6]}
12... Ne5 {[%clk 0:03:00.6]} 13. Bg5 {[%clk 0:03:08.8]} 13... Rc5 {[%clk
0:02:59.5]} 14. Kb1 {[%clk 0:03:08.9]} 14... a5 {[%clk 0:02:57.9]} 15. a4 {[%clk
0:03:00.9]} 15... Nc4 {[%clk 0:02:51.6]} 16. Qd3 {[%clk 0:02:46.8]} 16... Qc8
{[%clk 0:02:42.1]} 17. Bxf6 {[%clk 0:02:07.4]} 17... Bxf6 {[%clk 0:02:41.3]} 18.
Nd5 {[%clk 0:02:07.8]} 18... Ne5 {[%clk 0:02:08.3]} 19. Nxf6+ {[%clk 0:02:05.1]}
19... exf6 {[%clk 0:02:10.2]} 20. Qe2 {[%clk 0:01:25.2]} 20... b5 {[%clk
0:02:02.2]} 21. axb5 {[%clk 0:01:25.5]} 21... Qa8 {[%clk 0:01:52.1]} 22. Ba4
{[%clk 0:00:54.6]} 22... Rfc8 {[%clk 0:01:48.7]} 23. b3 {[%clk 0:00:49.8]} 23...
Qb7 {[%clk 0:01:40.4]} 24. Rd2 {[%clk 0:00:43.8]} 24... Rc3 {[%clk 0:01:31.3]}
25. Rhd1 {[%clk 0:00:40.8]} 25... Qb6 {[%clk 0:01:26.7]} 26. Qf1 {[%clk
0:00:26.8]} 26... Qc5 {[%clk 0:01:21.2]} 27. Ne2 {[%clk 0:00:23.9]} 27... Rxc2
{[%clk 0:01:18.1]} 28. Nd4 {[%clk 0:00:18.3]} 28... Rxd2 {[%clk 0:00:56.3]} 29.
Rxd2 {[%clk 0:00:20.2]} 29... Qb4 {[%clk 0:00:51.8]} 30. Rb2 {[%clk 0:00:20.3]}
30... Qxd4 {[%clk 0:00:50.3]} 0-1

[Event "*** Titled Tuesday 3|2 Blitz"]
[Site "Chess.com"]
[Date "2015.12.01"]
[Round "2"]
[White "AvitalBor"]
[Black "FabianEnglert"]
[Result "1-0"]
[WhiteElo "2356"]
[BlackElo "2305"]
[TimeControl "180+2"]
[EndTime "11:19:25 PST"]
[Termination "AvitalBor won by resignation"]

1. e4 {[%clk 0:03:01.9]} 1... g6 {[%clk 0:02:59.8]} 2. d4 {[%clk 0:03:01.1]}
2... Bg7 {[%clk 0:03:01.1]} 3. c3 {[%clk 0:03:02]} 3... d6 {[%clk 0:03:02]} 4.
Bd3 {[%clk 0:03:02.7]} 4... Nf6 {[%clk 0:03:01.8]} 5. Nf3 {[%clk 0:03:03.7]}
5... O-O {[%clk 0:03:02.7]} 6. O-O {[%clk 0:03:04.3]} 6... c5 {[%clk 0:03:04.1]}
7. Be3 {[%clk 0:02:56.4]} 7... b6 {[%clk 0:03:03.3]} 8. h3 {[%clk 0:02:54.8]}
8... Bb7 {[%clk 0:03:03.8]} 9. Nbd2 {[%clk 0:02:54.9]} 9... Nbd7 {[%clk
0:03:02.2]} 10. Re1 {[%clk 0:02:54.6]} 10... e5 {[%clk 0:02:54.2]} 11. a4 {[%clk
0:02:48.6]} 11... Re8 {[%clk 0:02:53.3]} 12. Nc4 {[%clk 0:02:38]} 12... Qc7
{[%clk 0:02:45.8]} 13. d5 {[%clk 0:02:08.6]} 13... Rf8 {[%clk 0:02:38.4]} 14. b4
{[%clk 0:02:07.5]} 14... h6 {[%clk 0:02:33.6]} 15. Qd2 {[%clk 0:02:05.9]} 15...
Kh7 {[%clk 0:02:33.8]} 16. b5 {[%clk 0:02:06.3]} 16... Nh5 {[%clk 0:02:28.5]}
17. a5 {[%clk 0:01:57.8]} 17... a6 {[%clk 0:02:08.9]} 18. axb6 {[%clk
0:01:52.1]} 18... Nxb6 {[%clk 0:02:10.8]} 19. Nxb6 {[%clk 0:01:51.2]} 19... Qxb6
{[%clk 0:02:12.7]} 20. bxa6 {[%clk 0:01:52.2]} 20... Bc8 {[%clk 0:01:44.7]} 21.
Reb1 {[%clk 0:01:50.4]} 21... Qc7 {[%clk 0:01:45.4]} 22. Qb2 {[%clk 0:01:47.5]}
22... Nf4 {[%clk 0:01:44.2]} 23. Bf1 {[%clk 0:01:48.3]} 23... f5 {[%clk
0:01:38.8]} 24. Qb6 {[%clk 0:01:44.8]} 24... Rf7 {[%clk 0:01:39.9]} 25. Qxc7
{[%clk 0:01:40.9]} 25... Rxc7 {[%clk 0:01:41.8]} 26. Nd2 {[%clk 0:01:38.6]}
26... fxe4 {[%clk 0:01:31.5]} 27. c4 {[%clk 0:01:38.7]} 27... Rxa6 {[%clk
0:01:21]} 28. Rxa6 {[%clk 0:01:35.7]} 28... Bxa6 {[%clk 0:01:22.9]} 29. Nxe4
{[%clk 0:01:37]} 29... Bf8 {[%clk 0:01:12.2]} 30. Rb6 {[%clk 0:01:31.8]} 30...
Bc8 {[%clk 0:01:05.2]} 31. Nxd6 {[%clk 0:01:31.9]} 31... Bf5 {[%clk 0:00:59.4]}
32. Nxf5 {[%clk 0:01:29.3]} 32... gxf5 {[%clk 0:01:01.3]} 33. Rf6 {[%clk
0:01:27.7]} 33... Bg7 {[%clk 0:00:49.7]} 34. Ra6 {[%clk 0:01:23.5]} 34... Ng6
{[%clk 0:00:41.9]} 35. d6 {[%clk 0:01:23.3]} 35... Rc8 {[%clk 0:00:38]} 36. Ra7
{[%clk 0:01:19.8]} 36... Ra8 {[%clk 0:00:27]} 37. Rxa8 {[%clk 0:01:20.2]} 1-0

[Event "*** Titled Tuesday 3|2 Blitz"]
[Site "Chess.com"]
[Date "2015.12.01"]
[Round "2"]
[White "BIG_Pirate"]
[Black "BellJackson95"]
[Result "1-0"]
[WhiteElo "2274"]
[BlackElo "2152"]
[TimeControl "180+2"]
[EndTime "11:19:25 PST"]
[Termination "BIG_Pirate won by resignation"]

1. Nf3 {[%clk 0:03:01.7]} 1... Nf6 {[%clk 0:02:57.1]} 2. c4 {[%clk 0:03:02.6]}
2... e6 {[%clk 0:02:55.8]} 3. Nc3 {[%clk 0:03:03.6]} 3... d5 {[%clk 0:02:57.3]}
4. d4 {[%clk 0:03:04.6]} 4... Bb4 {[%clk 0:02:57.8]} 5. Qa4+ {[%clk 0:03:04.7]}
5... Nc6 {[%clk 0:02:57.1]} 6. e3 {[%clk 0:03:01]} 6... Ne4 {[%clk 0:02:54.9]}
7. Qc2 {[%clk 0:02:57.9]} 7... O-O {[%clk 0:02:51]} 8. Bd3 {[%clk 0:02:58.2]}
8... Nf6 {[%clk 0:02:33.9]} 9. O-O {[%clk 0:02:43.9]} 9... dxc4 {[%clk
0:02:34.7]} 10. Bxc4 {[%clk 0:02:44.1]} 10... Re8 {[%clk 0:02:31.1]} 11. a3
{[%clk 0:02:40]} 11... Bf8 {[%clk 0:02:30.1]} 12. b4 {[%clk 0:02:34.5]} 12... a6
{[%clk 0:02:28.9]} 13. Bb2 {[%clk 0:02:29.9]} 13... e5 {[%clk 0:02:27.7]} 14.
dxe5 {[%clk 0:02:28.8]} 14... Nxe5 {[%clk 0:02:29.6]} 15. Nxe5 {[%clk
0:02:29.4]} 15... Rxe5 {[%clk 0:02:30.7]} 16. Rad1 {[%clk 0:02:28.7]} 16... Qe8
{[%clk 0:02:23.3]} 17. Nd5 {[%clk 0:02:26.9]} 17... Nxd5 {[%clk 0:02:14]} 18.
Bxe5 {[%clk 0:02:24.3]} 18... Nxb4 {[%clk 0:02:09.5]} 19. Qb2 {[%clk 0:02:06.4]}
19... Nc6 {[%clk 0:02:03.7]} 20. Bxc7 {[%clk 0:02:06.9]} 20... Qe4 {[%clk
0:01:58.5]} 21. Bd5 {[%clk 0:02:05.6]} 21... Qg6 {[%clk 0:01:57.8]} 22. Bg3
{[%clk 0:02:01.4]} 22... h5 {[%clk 0:01:48]} 23. Qb1 {[%clk 0:01:49.4]} 23...
Bf5 {[%clk 0:01:33.2]} 24. Qxb7 {[%clk 0:01:48.7]} 24... Rc8 {[%clk 0:01:33.2]}
25. e4 {[%clk 0:01:40.1]} 25... Bg4 {[%clk 0:01:30.7]} 26. f3 {[%clk 0:01:39]}
26... Bc5+ {[%clk 0:01:27.8]} 27. Kh1 {[%clk 0:01:39.3]} 27... Nd8 {[%clk
0:01:19.1]} 28. Qb3 {[%clk 0:01:25.3]} 28... Be6 {[%clk 0:01:18.1]} 29. Bxe6
{[%clk 0:01:24.4]} 29... Nxe6 {[%clk 0:01:20]} 30. Rd5 {[%clk 0:01:15.8]} 30...
Nd4 {[%clk 0:01:03]} 31. Qb7 {[%clk 0:01:14.2]} 31... Qe6 {[%clk 0:00:55.5]} 32.
Bf2 {[%clk 0:01:03.3]} 1-0

[Event "*** Titled Tuesday 3|2 Blitz"]
[Site "Chess.com"]
[Date "2015.12.01"]
[Round "2"]
[White "armago"]
[Black "UltimateCrusher2"]
[Result "1-0"]
[WhiteElo "2109"]
[BlackElo "2031"]
[TimeControl "180+2"]
[EndTime "11:19:33 PST"]
[Termination "armago won by resignation"]

1. d4 {[%clk 0:03:01.9]} 1... Nf6 {[%clk 0:02:57.6]} 2. c4 {[%clk 0:03:02.7]}
2... g6 {[%clk 0:02:56.2]} 3. Nc3 {[%clk 0:03:03.4]} 3... Bg7 {[%clk 0:02:57.8]}
4. e4 {[%clk 0:03:03.5]} 4... d6 {[%clk 0:02:59.4]} 5. Nf3 {[%clk 0:03:04.7]}
5... O-O {[%clk 0:03:00.9]} 6. Be2 {[%clk 0:03:06.3]} 6... e5 {[%clk 0:03:02.2]}
7. O-O {[%clk 0:03:07.8]} 7... Na6 {[%clk 0:03:03.6]} 8. Be3 {[%clk 0:03:05.9]}
8... Ng4 {[%clk 0:03:03.1]} 9. Bg5 {[%clk 0:03:06.8]} 9... Qe8 {[%clk
0:03:04.6]} 10. d5 {[%clk 0:03:05.6]} 10... h6 {[%clk 0:03:02.8]} 11. Bh4 {[%clk
0:03:04.6]} 11... f5 {[%clk 0:02:59.6]} 12. Ne1 {[%clk 0:03:02.8]} 12... Nf6
{[%clk 0:02:58.4]} 13. f3 {[%clk 0:03:03.8]} 13... f4 {[%clk 0:02:58.6]} 14. Bf2
{[%clk 0:03:02.7]} 14... g5 {[%clk 0:02:59.8]} 15. Nd3 {[%clk 0:03:03]} 15... h5
{[%clk 0:02:56.3]} 16. c5 {[%clk 0:03:01.8]} 16... g4 {[%clk 0:02:54.9]} 17.
cxd6 {[%clk 0:03:00.6]} 17... cxd6 {[%clk 0:02:55.7]} 18. Bh4 {[%clk 0:02:54.5]}
18... Qg6 {[%clk 0:02:12.1]} 19. Kh1 {[%clk 0:02:46.8]} 19... gxf3 {[%clk
0:01:46.1]} 20. gxf3 {[%clk 0:02:44.1]} 20... Kf7 {[%clk 0:01:39.1]} 21. Rg1
{[%clk 0:02:44.4]} 21... Qh7 {[%clk 0:01:38.6]} 22. Qb3 {[%clk 0:02:40.9]} 22...
b6 {[%clk 0:01:33.4]} 23. Nb5 {[%clk 0:02:35.2]} 23... Rd8 {[%clk 0:01:12.1]}
24. Nxe5+ {[%clk 0:02:28]} 24... dxe5 {[%clk 0:01:12.2]} 25. d6+ {[%clk
0:02:28.4]} 25... Be6 {[%clk 0:01:13]} 26. Bc4 {[%clk 0:02:29.2]} 26... Nc5
{[%clk 0:01:08]} 27. Bxe6+ {[%clk 0:02:29.6]} 27... Nxe6 {[%clk 0:01:09.9]} 28.
Nc7 {[%clk 0:02:30.2]} 28... Rxd6 {[%clk 0:01:07.1]} 29. Nxa8 {[%clk 0:02:20]}
29... Nxe4 {[%clk 0:00:35.5]} 30. Rad1 {[%clk 0:01:51.7]} 30... Nc5 {[%clk
0:00:26.8]} 31. Qc4 {[%clk 0:01:49.9]} 31... b5 {[%clk 0:00:25.8]} 32. Qxb5
{[%clk 0:01:44.3]} 32... Rxd1 {[%clk 0:00:20]} 33. Rxd1 {[%clk 0:01:44]} 33...
Qc2 {[%clk 0:00:21.5]} 34. Qf1 {[%clk 0:01:39.2]} 34... Nd4 {[%clk 0:00:21.8]}
35. Rc1 {[%clk 0:01:36.4]} 35... Qxb2 {[%clk 0:00:11.5]} 36. Rxc5 {[%clk
0:01:36.6]} 36... e4 {[%clk 0:00:11.8]} 37. Qc4+ {[%clk 0:01:33.5]} 37... Kg6
{[%clk 0:00:10.8]} 38. Qc1 {[%clk 0:01:31.8]} 38... Qf2 {[%clk 0:00:10.3]} 39.
Rg5+ {[%clk 0:01:31.6]} 39... Kh7 {[%clk 0:00:10.2]} 40. Bxf2 {[%clk 0:01:33.5]}
1-0

[Event "*** Titled Tuesday 3|2 Blitz"]
[Site "Chess.com"]
[Date "2015.12.01"]
[Round "2"]
[White "AungTZ"]
[Black "Makalexa"]
[Result "1-0"]
[WhiteElo "2102"]
[BlackElo "2050"]
[TimeControl "180+2"]
[EndTime "11:19:33 PST"]
[Termination "AungTZ won by resignation"]

1. e4 {[%clk 0:03:01]} 1... e5 {[%clk 0:02:55.7]} 2. Nf3 {[%clk 0:03:01]} 2...
Nc6 {[%clk 0:02:55.6]} 3. d4 {[%clk 0:03:02]} 3... exd4 {[%clk 0:02:54.6]} 4.
Nxd4 {[%clk 0:03:02.7]} 4... Bc5 {[%clk 0:02:55.5]} 5. Nb3 {[%clk 0:03:00.6]}
5... Bb4+ {[%clk 0:02:55.4]} 6. Bd2 {[%clk 0:02:59.5]} 6... Qe7 {[%clk
0:02:54.6]} 7. Bd3 {[%clk 0:02:59.2]} 7... Ne5 {[%clk 0:02:52.5]} 8. O-O {[%clk
0:02:59.6]} 8... Nxd3 {[%clk 0:02:51.5]} 9. cxd3 {[%clk 0:03:00.9]} 9... Bxd2
{[%clk 0:02:52.1]} 10. Qxd2 {[%clk 0:03:01.5]} 10... Nh6 {[%clk 0:02:51.4]} 11.
Nc3 {[%clk 0:03:01.9]} 11... c6 {[%clk 0:02:51.2]} 12. d4 {[%clk 0:02:58.5]}
12... d6 {[%clk 0:02:51.9]} 13. e5 {[%clk 0:02:58.3]} 13... O-O {[%clk
0:02:51.7]} 14. Rae1 {[%clk 0:02:58.3]} 14... dxe5 {[%clk 0:02:49.4]} 15. Rxe5
{[%clk 0:02:58.7]} 15... Qh4 {[%clk 0:02:46]} 16. h3 {[%clk 0:02:56.4]} 16...
Be6 {[%clk 0:02:38.5]} 17. Nc5 {[%clk 0:02:56.3]} 17... Bc4 {[%clk 0:02:32.9]}
18. Rfe1 {[%clk 0:02:56.5]} 18... b6 {[%clk 0:02:30.1]} 19. Nd7 {[%clk
0:02:35.7]} 19... Rfd8 {[%clk 0:02:29.5]} 20. R1e4 {[%clk 0:02:30.3]} 20... Qxe4
{[%clk 0:02:07.5]} 21. Nxe4 {[%clk 0:02:22.1]} 21... Rxd7 {[%clk 0:01:59.4]} 22.
Rh5 {[%clk 0:02:20.8]} 22... Kh8 {[%clk 0:01:33.4]} 23. Rxh6 {[%clk 0:02:13.6]}
23... gxh6 {[%clk 0:01:32.2]} 24. Qxh6 {[%clk 0:02:14.9]} 24... f5 {[%clk
0:01:21.1]} 25. Qxc6 {[%clk 0:02:11.2]} 25... Rad8 {[%clk 0:01:04.1]} 26. Qf6+
{[%clk 0:02:01.8]} 26... Kg8 {[%clk 0:01:02]} 27. Qxf5 {[%clk 0:02:00.5]} 27...
Rg7 {[%clk 0:00:30.2]} 28. Nf6+ {[%clk 0:01:55.7]} 28... Kh8 {[%clk 0:00:30.6]}
29. Nh5 {[%clk 0:01:56.6]} 29... Rg6 {[%clk 0:00:13.7]} 30. Qe5+ {[%clk
0:01:52.5]} 30... Kg8 {[%clk 0:00:14.6]} 31. Nf6+ {[%clk 0:01:51.5]} 31... Kf7
{[%clk 0:00:15.7]} 32. Qc7+ {[%clk 0:01:43.9]} 32... Kxf6 {[%clk 0:00:12.9]} 33.
Qxd8+ {[%clk 0:01:44.7]} 33... Ke6 {[%clk 0:00:14.5]} 34. Qc7 {[%clk 0:01:29.7]}
34... b5 {[%clk 0:00:07.9]} 35. b3 {[%clk 0:01:29.6]} 35... Bd3 {[%clk
0:00:07.2]} 36. Qe5+ {[%clk 0:01:29.7]} 36... Kf7 {[%clk 0:00:07.4]} 37. d5
{[%clk 0:01:29.5]} 37... a6 {[%clk 0:00:03.2]} 38. d6 {[%clk 0:01:30.1]} 38...
Rg8 {[%clk 0:00:03.4]} 39. Qd5+ {[%clk 0:01:30.6]} 1-0

[Event "*** Titled Tuesday 3|2 Blitz"]
[Site "Chess.com"]
[Date "2015.12.01"]
[Round "2"]
[White "Hikaru"]
[Black "Frolyanov_D"]
[Result "1-0"]
[WhiteElo "2916"]
[BlackElo "2446"]
[TimeControl "180+2"]
[EndTime "11:19:34 PST"]
[Termination "Hikaru won by resignation"]

1. d4 {[%clk 0:03:01.9]} 1... d5 {[%clk 0:03:00.1]} 2. Nc3 {[%clk 0:03:02.5]}
2... Nf6 {[%clk 0:02:59.8]} 3. Bg5 {[%clk 0:03:03]} 3... Nbd7 {[%clk 0:03:00]}
4. f3 {[%clk 0:03:03.3]} 4... c5 {[%clk 0:02:55.9]} 5. dxc5 {[%clk 0:02:56.2]}
5... e6 {[%clk 0:02:54.5]} 6. e4 {[%clk 0:02:48.2]} 6... Bxc5 {[%clk 0:02:42.5]}
7. Qd2 {[%clk 0:02:42.3]} 7... O-O {[%clk 0:02:37.8]} 8. exd5 {[%clk 0:02:39.7]}
8... exd5 {[%clk 0:02:30.9]} 9. O-O-O {[%clk 0:02:40.7]} 9... Qa5 {[%clk
0:02:25]} 10. Kb1 {[%clk 0:02:41.4]} 10... Bb4 {[%clk 0:02:18.5]} 11. Nge2
{[%clk 0:02:41.8]} 11... h6 {[%clk 0:02:00.8]} 12. Bxf6 {[%clk 0:02:39.3]} 12...
Nxf6 {[%clk 0:02:00.7]} 13. a3 {[%clk 0:02:41]} 13... Bxc3 {[%clk 0:01:51.8]}
14. Qxc3 {[%clk 0:02:42.9]} 14... Qb6 {[%clk 0:01:44.2]} 15. Qd4 {[%clk
0:02:42.3]} 15... Qc7 {[%clk 0:01:40.7]} 16. g4 {[%clk 0:02:42.9]} 16... Bd7
{[%clk 0:01:33.5]} 17. Nf4 {[%clk 0:02:41.5]} 17... Rac8 {[%clk 0:01:30.9]} 18.
Bd3 {[%clk 0:02:41.2]} 18... Rfe8 {[%clk 0:01:30.3]} 19. h4 {[%clk 0:02:40.6]}
19... Qe5 {[%clk 0:01:18.5]} 20. Qxe5 {[%clk 0:02:39.5]} 20... Rxe5 {[%clk
0:01:18.7]} 21. Rhg1 {[%clk 0:02:41.2]} 21... g5 {[%clk 0:01:16.1]} 22. hxg5
{[%clk 0:02:43.1]} 22... hxg5 {[%clk 0:01:16.7]} 23. Ne2 {[%clk 0:02:44.8]}
23... Kg7 {[%clk 0:00:59.2]} 24. Rh1 {[%clk 0:02:43.4]} 24... Rh8 {[%clk
0:00:57]} 25. Rxh8 {[%clk 0:02:43.9]} 25... Kxh8 {[%clk 0:00:58.9]} 26. Nd4
{[%clk 0:02:45.8]} 26... Kg7 {[%clk 0:00:58.1]} 27. Kc1 {[%clk 0:02:46.2]} 27...
a6 {[%clk 0:00:57.6]} 28. Kd2 {[%clk 0:02:47.2]} 28... Re8 {[%clk 0:00:48.9]}
29. Rh1 {[%clk 0:02:47.1]} 29... Rh8 {[%clk 0:00:47.4]} 30. Rxh8 {[%clk
0:02:47.7]} 30... Kxh8 {[%clk 0:00:49.3]} 31. Kc3 {[%clk 0:02:49.6]} 31... a5
{[%clk 0:00:44.2]} 32. Ne2 {[%clk 0:02:42.7]} 32... Kg7 {[%clk 0:00:42.3]} 33.
Kd4 {[%clk 0:02:44.1]} 33... Kf8 {[%clk 0:00:42.1]} 34. Kc5 {[%clk 0:02:44.5]}
34... Ke7 {[%clk 0:00:29.2]} 35. Nd4 {[%clk 0:02:45.5]} 35... Ne8 {[%clk
0:00:20.3]} 36. Kxd5 {[%clk 0:02:40.4]} 36... b6 {[%clk 0:00:18.2]} 37. Nf5+
{[%clk 0:02:26.2]} 37... Kd8 {[%clk 0:00:12.3]} 38. Nd6 {[%clk 0:02:23.5]} 38...
Nc7+ {[%clk 0:00:09.1]} 39. Ke5 {[%clk 0:02:24.9]} 39... Ke7 {[%clk 0:00:10.1]}
40. Nf5+ {[%clk 0:02:26.2]} 40... Bxf5 {[%clk 0:00:10.5]} 41. Kxf5 {[%clk
0:02:25.3]} 41... f6 {[%clk 0:00:11.4]} 42. Ke4 {[%clk 0:02:23.3]} 42... Kd6
{[%clk 0:00:11.8]} 43. Bc4 {[%clk 0:02:23.9]} 43... Ne8 {[%clk 0:00:10.8]} 44.
Bf7 {[%clk 0:02:24.7]} 44... Nc7 {[%clk 0:00:11.3]} 45. b3 {[%clk 0:02:21.1]}
45... Nb5 {[%clk 0:00:11.5]} 46. a4 {[%clk 0:02:21.9]} 46... Nc3+ {[%clk
0:00:11.8]} 47. Kd3 {[%clk 0:02:21.5]} 47... Na2 {[%clk 0:00:08.1]} 48. c3
{[%clk 0:02:21.4]} 1-0